bitfinex-derivatives/quotes_BTCF0:USTF0_20240830
["timestamp","ask_amount","ask_price","bid_price","bid_amount"]
[1725029998933,0.05,58490.0,58489.0,0.36105636]
[1725029999538,0.49628,58490.0,58489.0,0.00025636]
[1725029999733,0.15761966,58490.0,58489.0,0.00025636]
[1725029999937,1.18505966,58490.0,58477.0,0.085499]
[1725030000140,0.385489,58484.0,58474.0,0.085502]
[1725030000356,0.3,58477.0,58466.0,0.3608]
[1725030000647,0.3,58477.0,58473.0,0.3608]
[1725030000648,0.106,58477.0,58473.0,0.3608]
[1725030000947,0.106,58477.0,58476.0,0.4463]
[1725030001452,0.106,58477.0,58476.0,0.0855]
[1725030001742,0.106,58477.0,58476.0,0.4463]
[1725030001943,0.106,58477.0,58472.0,0.08537]
[1725030002245,0.4668,58477.0,58472.0,0.08537]
[1725030002546,0.3608,58476.0,58472.0,0.08537]
[1725030002742,0.4808,58476.0,58472.0,0.08537]
[1725030002939,0.3608,58475.0,58474.0,0.014]
[1725030003140,1.379342,58475.0,58474.0,0.014]
[1725030003645,1.29384,58475.0,58472.0,0.014]
[1725030003839,0.7808,58475.0,58472.0,0.014]
[1725030004039,0.335505,58473.0,58472.0,0.014]
[1725030004234,0.335505,58473.0,58469.0,0.00025636]
[1725030004235,0.38,58473.0,58469.0,0.00025636]
[1725030004452,0.38,58473.0,58470.0,0.085509]
[1725030004747,0.38,58473.0,58469.0,0.00025636]
[1725030004954,0.40209067,58473.0,58469.0,0.00025636]
[1725030005144,0.40209067,58473.0,58472.0,0.446306]
[1725030005145,0.13,58473.0,58472.0,0.446306]
[1725030005350,0.02183277,58486.0,58472.0,0.3608]
[1725030005547,0.5,58508.0,58472.0,0.3608]
[1725030005548,0.004,58501.0,58485.0,0.7216]
[1725030005844,0.004,58501.0,58490.0,0.3608]
[1725030005845,0.25,58498.0,58490.0,0.3608]
[1725030006047,0.37,58498.0,58490.0,0.3608]
[1725030006254,0.25,58493.0,58490.0,0.3608]
[1725030006440,0.12,58493.0,58490.0,0.3608]
[1725030006640,0.12,58493.0,58492.0,0.085477]
[1725030007055,0.12,58493.0,58492.0,1.919957]
[1725030007352,0.12,58493.0,58492.0,0.3608]
[1725030007544,0.121,58493.0,58490.0,0.002]
[1725030007742,0.3608,58492.0,58490.0,0.002]
[1725030008045,0.3,58491.0,58486.0,0.00025636]
[1725030008249,0.446284,58487.0,58486.0,0.00025636]
[1725030008542,0.566284,58487.0,58486.0,0.00025636]
[1725030009146,0.566284,58487.0,58468.0,0.02173341]
[1725030009147,0.085499,58478.0,58466.0,0.702784]
[1725030009343,0.3608,58472.0,58466.0,0.25647]
[1725030009538,0.3608,58472.0,58466.0,0.08537]
[1725030009539,0.4608,58472.0,58466.0,0.08537]
[1725030009739,0.4608,58472.0,58458.0,0.1605]
[1725030009942,0.4608,58472.0,58460.0,0.08537]
[1725030009943,0.6608,58467.0,58460.0,0.08537]
[1725030010142,0.11,58467.0,58460.0,0.08537]
[1725030010453,0.11,58467.0,58465.0,0.08537]
[1725030010658,0.11,58467.0,58466.0,0.170885]
[1725030010843,0.11,58467.0,58466.0,0.44617]
[1725030010844,0.05,58467.0,58466.0,0.44617]
[1725030011154,0.00025636,58469.0,58466.0,1.644805]
[1725030011346,0.04,58469.0,58468.0,0.085512]
[1725030011657,0.001,58472.0,58471.0,0.085508]
[1725030011857,0.051,58472.0,58471.0,0.446308]
[1725030012042,0.07,58478.0,58477.0,0.085499]
[1725030012349,0.04,58478.0,58477.0,0.3608]
[1725030013752,0.04,58478.0,58477.0,0.446299]
[1725030013965,0.04,58478.0,58477.0,0.3608]
[1725030014145,0.126497,58478.0,58477.0,0.3748]
[1725030014346,0.041,58478.0,58477.0,0.014]
[1725030014752,0.126497,58478.0,58477.0,0.014]
[1725030015546,0.041,58478.0,58477.0,0.014]
[1725030015854,0.041,58478.0,58477.0,0.06493412]
[1725030016051,0.041,58478.0,58477.0,0.014]
[1725030016251,0.041,58478.0,58477.0,0.06503517]
[1725030016455,0.041,58478.0,58477.0,0.014]
[1725030016657,0.041,58478.0,58477.0,0.099499]
[1725030016850,0.041,58478.0,58477.0,0.612499]
[1725030017051,0.041,58478.0,58477.0,0.014]
[1725030017256,0.041,58478.0,58477.0,0.06507806]
[1725030017446,0.041,58478.0,58477.0,0.014]
[1725030017447,0.126497,58478.0,58477.0,0.014]
[1725030017957,0.041,58478.0,58477.0,0.460299]
[1725030018159,0.051,58478.0,58477.0,0.51137706]
[1725030018362,0.051,58478.0,58477.0,1.573299]
[1725030018857,0.00025636,58483.0,58482.0,0.085492]
[1725030019051,0.07025636,58483.0,58482.0,0.446292]
[1725030019248,0.07025636,58483.0,58482.0,0.94188081]
[1725030019449,0.07025636,58483.0,58482.0,1.559252]
[1725030019656,0.05,58483.0,58482.0,1.47376]
[1725030019850,0.07,58489.0,58482.0,1.47376]
[1725030020051,0.3608,58507.0,58488.0,0.6608]
[1725030020249,0.13154785,58507.0,58506.0,0.3608]
[1725030020454,0.13154785,58507.0,58505.0,0.085458]
[1725030020658,0.13154785,58507.0,58504.0,0.3608]
[1725030020659,0.11,58507.0,58504.0,0.3608]
[1725030020955,0.11,58507.0,58506.0,0.085457]
[1725030021350,0.11,58507.0,58506.0,1.198217]
[1725030021949,0.111,58507.0,58506.0,1.198217]
[1725030022555,0.111,58507.0,58506.0,0.52676]
[1725030022773,0.111,58507.0,58506.0,0.014]
[1725030023669,0.111,58507.0,58506.0,1.212217]
[1725030023849,0.07952279,58507.0,58506.0,1.26320033]
[1725030024149,0.00025636,58512.0,58506.0,1.13533079]
[1725030024348,0.00025636,58512.0,58511.0,0.3608]
[1725030024547,0.00025636,58512.0,58511.0,0.446249]
[1725030024749,0.00025636,58512.0,58511.0,1.60992067]
[1725030024963,0.085418,58533.0,58511.0,1.47352]
[1725030025159,0.08542,58532.0,58528.0,0.3608]
[1725030025352,0.11,58532.0,58528.0,0.3608]
[1725030025562,0.085423,58529.0,58528.0,0.3608]
[1725030025868,0.085423,58529.0,58521.0,0.3608]
[1725030025869,0.05,58529.0,58521.0,0.3608]
[1725030026161,0.38543,58524.0,58523.0,0.00025636]
[1725030026464,0.12,58524.0,58523.0,0.00025636]
[1725030026651,0.36204,58535.0,58523.0,0.00025636]
[1725030026855,0.08543,58524.0,58523.0,0.00025636]
[1725030027061,0.3,58529.0,58523.0,0.36105636]
[1725030027358,0.38,58529.0,58523.0,0.00025636]
[1725030027567,0.08,58529.0,58527.0,0.3608]
[1725030027864,0.08,58529.0,58528.0,0.3608]
[1725030028252,0.08,58529.0,58528.0,0.446224]
[1725030028454,0.0002563,58534.0,58528.0,0.3608]
[1725030028651,0.0902563,58534.0,58528.0,0.3748]
[1725030029064,0.0902563,58534.0,58528.0,0.460224]
[1725030029250,0.0902563,58534.0,58533.0,0.085417]
[1725030029453,0.0002563,58534.0,58533.0,0.958737]
[1725030029664,0.0602563,58534.0,58533.0,1.47332]
[1725030029866,0.0602563,58534.0,58533.0,0.3608]
[1725030030856,0.8016,58540.0,58533.0,0.3608]
[1725030030857,0.72133501,58540.0,58533.0,0.3608]
[1725030031059,0.72005501,58540.0,58533.0,0.3608]
[1725030031261,0.74224533,58540.0,58533.0,0.3608]
[1725030031462,0.085408,58539.0,58538.0,0.3608]
[1725030031766,0.205408,58539.0,58538.0,0.3608]
[1725030032062,0.12,58539.0,58538.0,1.55869]
[1725030032269,0.12,58539.0,58538.0,0.44621]
[1725030032466,0.12,58539.0,58538.0,0.3608]
[1725030033067,0.12,58539.0,58538.0,0.7246]
[1725030033255,0.12,58539.0,58538.0,1.92249]
[1725030033457,0.12,58539.0,58538.0,1.23708]
[1725030033762,0.54979501,58540.0,58539.0,0.085408]
[1725030033967,0.54855501,58540.0,58539.0,1.2063844]
[1725030034475,0.67396201,58540.0,58539.0,0.0084964]
[1725030034663,0.085408,58539.0,58538.0,0.00404]
[1725030034862,0.205408,58539.0,58538.0,0.003]
[1725030035065,0.12,58539.0,58534.0,0.0085904]
[1725030035362,0.12,58539.0,58538.0,0.08541]
[1725030035561,0.12,58539.0,58538.0,0.08941]
[1725030035869,0.106,58539.0,58538.0,0.08941]
[1725030036069,0.106,58539.0,58538.0,0.004]
[1725030036770,0.191408,58539.0,58538.0,0.004]
[1725030037068,0.08541,58538.0,58537.0,0.36168]
[1725030037259,0.99328,58538.0,58534.0,0.014]
[1725030037466,0.17086,58524.0,58517.0,0.3608]
[1725030037661,0.20543,58524.0,58522.0,0.0086704]
[1725030037963,0.12,58524.0,58523.0,1.19828836]
[1725030038163,0.54855501,58540.0,58523.0,1.11285636]
[1725030038364,0.65855501,58540.0,58533.0,0.3608]
[1725030038563,0.68070558,58540.0,58533.0,0.3608]
[1725030038767,0.085408,58539.0,58538.0,0.014]
[1725030038963,0.11,58539.0,58538.0,0.014]
[1725030039269,0.195408,58539.0,58538.0,0.3608]
[1725030039461,0.11,58539.0,58538.0,0.44621]
[1725030039657,0.11,58539.0,58538.0,0.3608]
[1725030040262,0.113,58539.0,58538.0,0.44721]
[1725030040663,0.113,58539.0,58538.0,0.3618]
[1725030041777,0.113,58539.0,58538.0,0.44721]
[1725030041961,0.11,58539.0,58538.0,1.25869]
[1725030042161,0.11,58539.0,58538.0,1.25969]
[1725030042361,0.54979501,58540.0,58539.0,0.085408]
[1725030042561,0.60855501,58540.0,58539.0,0.085408]
[1725030042785,0.54855501,58540.0,58539.0,0.085408]
[1725030043471,0.54855501,58540.0,58539.0,0.597888]
[1725030043767,0.54855501,58540.0,58539.0,0.085408]
[1725030044071,0.59855501,58540.0,58538.0,0.3638]
[1725030044260,0.59855501,58540.0,58538.0,0.3628]
[1725030044667,0.59855501,58540.0,58538.0,0.002]
[1725030044668,0.085408,58539.0,58538.0,0.002]
[1725030044864,0.08543,58524.0,58523.0,0.05090293]
[1725030045061,0.20543,58524.0,58523.0,0.05090293]
[1725030045270,0.085438,58519.0,58518.0,0.06752876]
[1725030045567,0.205438,58519.0,58518.0,0.06752876]
[1725030045773,0.714078,58519.0,58518.0,0.06752876]
[1725030046069,0.12,58519.0,58508.0,0.09410555]
[1725030046269,0.12,58519.0,58512.0,0.3608]
[1725030046569,0.12025636,58519.0,58518.0,0.3748]
[1725030046774,0.12025636,58519.0,58518.0,0.62044857]
[1725030047160,0.12025636,58519.0,58518.0,0.10780857]
[1725030047368,0.12025636,58519.0,58518.0,0.02236957]
[1725030047567,0.12025636,58519.0,58518.0,0.10780857]
[1725030048177,0.12025636,58519.0,58518.0,1.56724857]
[1725030048376,0.15541217,58541.0,58528.0,0.085424]
[1725030048672,0.3608,58538.0,58529.0,0.3608]
[1725030048860,0.3608,58538.0,58528.0,0.085424]
[1725030048861,0.4708,58538.0,58528.0,0.085424]
[1725030049176,0.19541,58538.0,58537.0,0.3608]
[1725030049386,0.19541,58538.0,58518.0,0.02236957]
[1725030049387,0.085438,58519.0,58518.0,0.02236957]
[1725030049574,0.145438,58519.0,58518.0,0.014]
[1725030049772,0.085445,58514.0,58513.0,0.00025636]
[1725030049971,0.085452,58509.0,58508.0,0.0084884]
[1725030050273,0.085452,58509.0,58498.0,0.3608]
[1725030050274,0.12,58509.0,58498.0,0.3608]
[1725030050666,0.12,58509.0,58492.0,0.3608]
[1725030050667,0.3608,58500.0,58492.0,0.3608]
[1725030050863,0.3608,58493.0,58480.0,0.6608]
[1725030051071,0.3608,58493.0,58486.0,0.3608]
[1725030051072,0.00025636,58492.0,58486.0,0.3608]
[1725030051275,0.085482,58489.0,58486.0,0.00837491]
[1725030051483,0.05,58489.0,58481.0,0.00025636]
[1725030051676,0.05,58489.0,58481.0,0.00873809]
[1725030051677,0.036,58489.0,58481.0,0.00873809]
[1725030051868,0.036,58489.0,58481.0,0.00025636]
[1725030052472,0.036,58489.0,58486.0,0.014]
[1725030052874,0.3608,58487.0,58481.0,0.00025636]
[1725030053078,0.12,58487.0,58486.0,0.3608]
[1725030053381,0.085486,58486.0,58481.0,0.01425636]
[1725030053583,0.05,58486.0,58481.0,0.01425636]
[1725030053771,0.3608,58482.0,58481.0,0.01425636]
[1725030053973,0.05,58482.0,58481.0,0.01425636]
[1725030054273,0.05,58482.0,58481.0,0.37505636]
[1725030054674,0.001,58489.0,58481.0,0.37505636]
[1725030054675,0.001,58489.0,58488.0,0.085483]
[1725030054978,0.001,58489.0,58488.0,0.446283]
[1725030055176,0.085456,58507.0,58491.0,0.085478]
[1725030055384,0.3608,58510.0,58491.0,0.685478]
[1725030055589,0.3608,58510.0,58491.0,1.11288]
[1725030055886,0.03,58510.0,58506.0,0.3608]
[1725030056084,0.03,58510.0,58507.0,0.00868854]
[1725030056269,0.03,58510.0,58492.0,0.6608]
[1725030056474,0.115451,58510.0,58496.0,0.085471]
[1725030056780,0.085466,58500.0,58497.0,0.00025636]
[1725030057080,0.01,58500.0,58497.0,0.00025636]
[1725030057291,0.005,58500.0,58497.0,0.00025636]
[1725030057472,0.085468,58498.0,58497.0,0.00025636]
[1725030057795,0.090468,58498.0,58497.0,0.00025636]
[1725030058180,0.085478,58492.0,58477.0,0.36941078]
[1725030058377,0.3608,58490.0,58480.0,0.085494]
[1725030058577,0.02,58490.0,58478.0,0.085497]
[1725030058777,0.085486,58486.0,58478.0,0.085497]
[1725030058983,0.02,58486.0,58485.0,0.3608]
[1725030059377,0.105486,58486.0,58485.0,0.3608]
[1725030059572,0.105486,58486.0,58480.0,0.00025636]
[1725030059573,0.085493,58481.0,58480.0,0.00025636]
[1725030059880,0.115493,58481.0,58480.0,0.00025636]
[1725030060071,0.03,58481.0,58480.0,0.00025636]
[1725030060280,0.03,58481.0,58480.0,0.08575136]
[1725030060578,0.03,58481.0,58480.0,0.00025636]
[1725030060782,0.03,58481.0,58480.0,0.59875136]
[1725030060982,0.03,58481.0,58480.0,1.19875136]
[1725030061176,0.00025636,58491.0,58485.0,0.3]
[1725030061380,0.00025636,58491.0,58490.0,0.80708]
[1725030061580,0.004,58511.0,58506.0,0.085457]
[1725030061788,0.205451,58511.0,58504.0,0.3608]
[1725030061989,0.3,58507.0,58499.0,0.00856891]
[1725030062282,0.3,58507.0,58503.0,0.3608]
[1725030062283,0.42,58507.0,58503.0,0.3608]
[1725030062482,0.12,58507.0,58503.0,0.3608]
[1725030063282,0.12,58507.0,58506.0,0.085457]
[1725030063485,0.121,58507.0,58506.0,0.085457]
[1725030063880,0.121,58507.0,58506.0,1.498217]
[1725030064075,0.085433,58523.0,58506.0,1.498217]
[1725030064076,0.085427,58527.0,58507.0,0.51272]
[1725030064279,0.085427,58527.0,58518.0,0.3608]
[1725030064280,0.13,58527.0,58518.0,0.3608]
[1725030065011,0.13,58527.0,58518.0,0.00854752]
[1725030065187,0.085432,58523.0,58513.0,0.085445]
[1725030065375,0.125432,58523.0,58511.0,0.36105636]
[1725030065575,0.04,58523.0,58516.0,0.3608]
[1725030065787,0.34,58523.0,58518.0,0.009]
[1725030066198,0.085438,58519.0,58516.0,0.3608]
[1725030066378,0.08544,58517.0,58516.0,0.3608]
[1725030066580,0.02,58517.0,58516.0,0.3608]
[1725030066981,0.02,58517.0,58515.0,0.00853811]
[1725030067180,0.02,58517.0,58513.0,0.014]
[1725030067389,0.10544,58517.0,58513.0,0.014]
[1725030067798,0.085445,58514.0,58513.0,0.014]
[1725030068088,0.085465,58500.0,58496.0,0.3608]
[1725030068292,0.01,58500.0,58496.0,0.00847282]
[1725030068585,0.01,58500.0,58498.0,0.3608]
[1725030068783,0.38802692,58514.0,58498.0,0.3608]
[1725030068982,0.085467,58499.0,58498.0,0.3608]
[1725030069186,0.085467,58499.0,58495.0,0.3608]
[1725030069187,0.085471,58496.0,58495.0,0.3608]
[1725030069389,0.085474,58494.0,58493.0,0.00025636]
[1725030069589,0.09,58494.0,58493.0,0.00025636]
[1725030069903,0.09,58494.0,58493.0,0.44653236]
[1725030070196,0.3608,58503.0,58493.0,0.36105636]
[1725030070398,0.08,58503.0,58493.0,0.36105636]
[1725030070591,0.08,58503.0,58498.0,0.446268]
[1725030070887,0.085467,58499.0,58498.0,0.3608]
[1725030071090,0.085467,58499.0,58493.0,0.00025636]
[1725030071091,0.085474,58494.0,58493.0,0.00025636]
[1725030071294,0.085474,58494.0,58477.0,0.3608]
[1725030071295,0.085482,58489.0,58477.0,0.3608]
[1725030071502,0.085482,58489.0,58472.0,0.3608]
[1725030071503,0.3,58478.0,58472.0,0.3608]
[1725030071685,0.3608,58476.0,58467.0,0.3608]
[1725030071884,0.195501,58476.0,58467.0,0.3608]
[1725030072086,0.085503,58474.0,58467.0,0.3608]
[1725030072287,0.085505,58473.0,58467.0,0.3608]
[1725030072483,0.11,58473.0,58468.0,0.085512]
[1725030072888,0.11,58473.0,58469.0,0.08551]
[1725030073089,0.11,58473.0,58467.0,0.3608]
[1725030073090,0.102,58473.0,58472.0,0.3608]
[1725030073284,0.102,58473.0,58472.0,0.446306]
[1725030073482,0.102,58473.0,58472.0,0.085506]
[1725030073685,0.102,58473.0,58467.0,0.3608]
[1725030073686,0.402,58473.0,58467.0,0.3608]
[1725030073890,0.102,58473.0,58467.0,0.3608]
[1725030074790,0.102,58473.0,58472.0,0.446306]
[1725030074791,0.103,58473.0,58472.0,0.446306]
[1725030075089,0.103,58473.0,58472.0,0.807106]
[1725030075090,0.001,58473.0,58472.0,0.807106]
[1725030075292,0.001,58473.0,58472.0,1.320186]
[1725030075489,0.001,58473.0,58472.0,0.3608]
[1725030075791,0.001,58473.0,58465.0,0.00025636]
[1725030075792,0.051,58473.0,58469.0,0.3608]
[1725030075993,0.05,58473.0,58469.0,0.3608]
[1725030076186,0.051,58473.0,58469.0,0.3608]
[1725030076387,0.085509,58470.0,58465.0,0.00025636]
[1725030076693,0.05,58470.0,58469.0,0.085511]
[1725030076989,0.05,58470.0,58469.0,0.385511]
[1725030077195,0.001,58473.0,58472.0,0.085506]
[1725030077494,0.051,58473.0,58472.0,0.085506]
[1725030077795,0.05,58473.0,58472.0,0.085506]
[1725030077995,0.085484,58488.0,58472.0,0.085506]
[1725030077996,0.0046,58494.0,58474.0,0.085502]
[1725030078191,0.3608,58504.0,58491.0,0.746278]
[1725030078192,0.052,58492.0,58491.0,0.746278]
[1725030078390,0.052,58492.0,58491.0,0.75469817]
[1725030079082,0.052,58492.0,58491.0,1.26757817]
[1725030079286,0.00025636,58497.0,58493.0,0.085475]
[1725030079598,0.06025636,58497.0,58496.0,0.3608]
[1725030079893,0.42105636,58497.0,58492.0,0.3608]
[1725030080190,0.42105636,58497.0,58486.0,0.00880486]
[1725030080395,0.085481,58490.0,58486.0,0.00025636]
[1725030080591,0.195481,58490.0,58486.0,0.00025636]
[1725030080798,0.11,58490.0,58486.0,0.00025636]
[1725030081000,0.085484,58487.0,58486.0,0.00025636]
[1725030081185,0.085484,58487.0,58472.0,0.3608]
[1725030081186,0.62292,58487.0,58472.0,0.3608]
[1725030081388,0.3608,58483.0,58472.0,0.3608]
[1725030081594,0.085502,58476.0,58472.0,0.3608]
[1725030081790,0.205502,58476.0,58472.0,0.3608]
[1725030082292,0.205502,58476.0,58475.0,0.385502]
[1725030082293,0.12,58476.0,58475.0,0.385502]
[1725030082502,0.12,58476.0,58475.0,0.3]
[1725030082799,0.00025636,58480.0,58475.0,0.81304]
[1725030083098,0.15575236,58480.0,58474.0,0.36168]
[1725030083286,0.085502,58475.0,58474.0,0.3608]
[1725030083596,0.07,58475.0,58474.0,0.3608]
[1725030084892,0.156502,58475.0,58474.0,0.3608]
[1725030085603,0.085511,58469.0,58468.0,0.00025636]
[1725030085791,0.205511,58469.0,58468.0,0.00885993]
[1725030085990,0.12,58469.0,58468.0,0.00025636]
[1725030086498,0.12,58469.0,58468.0,0.00877938]
[1725030086694,0.12,58469.0,58468.0,0.30025636]
[1725030086892,0.12,58469.0,58468.0,0.00025636]
[1725030087703,0.121,58469.0,58468.0,0.30025636]
[1725030088397,0.206511,58469.0,58468.0,0.00025636]
[1725030088704,0.085527,58458.0,58456.0,0.08537]
[1725030088892,0.185527,58458.0,58456.0,0.08537]
[1725030089198,0.185527,58458.0,58456.0,0.44617]
[1725030089791,0.185527,58458.0,58456.0,0.44709]
[1725030089994,0.185527,58458.0,58456.0,0.44617]
[1725030090494,0.185527,58458.0,58456.0,0.08537]
[1725030090696,0.186527,58458.0,58457.0,0.36084]
[1725030091692,0.186527,58458.0,58457.0,4e-05]
[1725030091905,0.272054,58458.0,58457.0,4e-05]
[1725030092108,1.685254,58458.0,58457.0,4e-05]
[1725030092396,1.385254,58458.0,58457.0,4e-05]
[1725030092601,1.299727,58458.0,58457.0,4e-05]
[1725030092993,1.385254,58458.0,58457.0,4e-05]
[1725030093318,0.186527,58458.0,58457.0,4e-05]
[1725030093498,0.186527,58458.0,58457.0,0.36084]
[1725030093692,0.101,58458.0,58457.0,0.446368]
[1725030093893,0.101,58458.0,58457.0,0.959568]
[1725030094411,0.101,58458.0,58457.0,0.45483703]
[1725030094594,0.186527,58458.0,58457.0,4e-05]
[1725030094904,0.272054,58458.0,58457.0,4e-05]
[1725030095203,0.272054,58458.0,58452.0,0.0002566]
[1725030095204,0.256602,58453.0,58452.0,0.0002566]
[1725030095397,0.256602,58453.0,58447.0,0.08537]
[1725030095398,0.17108,58449.0,58447.0,0.08537]
[1725030095598,0.11,58449.0,58447.0,0.170913]
[1725030095893,0.07585,58449.0,58448.0,0.171411]
[1725030096098,0.0417,58449.0,58448.0,0.171411]
[1725030096402,0.001,58458.0,58457.0,0.085528]
[1725030096610,0.081,58458.0,58457.0,0.807128]
[1725030097197,0.001,58458.0,58457.0,0.7216]
[1725030097395,0.011,58458.0,58457.0,0.3608]
[1725030097607,0.096527,58458.0,58457.0,0.3608]
[1725030097803,0.096527,58458.0,58448.0,0.0005]
[1725030097804,0.08654,58449.0,58448.0,0.0005]
[1725030097996,0.66288,58449.0,58448.0,0.0005]
[1725030098200,0.57734,58449.0,58448.0,0.0005]
[1725030098396,0.21554,58449.0,58448.0,0.0005]
[1725030099007,0.085547,58444.0,58433.0,0.3608]
[1725030099307,0.7908,58444.0,58423.0,0.08482884]
[1725030099502,0.7908,58444.0,58419.0,0.00846821]
[1725030099503,0.3608,58424.0,58419.0,0.00846821]
[1725030099808,0.3608,58424.0,58412.0,0.3608]
[1725030099809,0.085582,58420.0,58412.0,0.3608]
[1725030100007,0.06,58420.0,58415.0,0.085589]
[1725030100309,0.06,58420.0,58412.0,0.3608]
[1725030100310,0.06,58420.0,58412.0,0.3610566]
[1725030100807,0.36,58420.0,58412.0,0.3610566]
[1725030101009,0.6608,58413.0,58412.0,0.0002566]
[1725030101210,1.3908,58413.0,58412.0,0.0002566]
[1725030101409,1.9044,58413.0,58412.0,0.0002566]
[1725030101798,1.9044,58413.0,58405.0,0.3608]
[1725030102101,0.3,58406.0,58404.0,0.0005]
[1725030102307,0.505604,58406.0,58404.0,0.0005]
[1725030102501,0.505604,58406.0,58386.0,0.085631]
[1725030102502,0.87444,58405.0,58386.0,0.085631]
[1725030102700,0.3608,58401.0,58379.0,0.085641]
[1725030102900,0.3,58385.0,58379.0,0.085641]
[1725030103098,0.446427,58390.0,58374.0,0.3608]
[1725030103099,0.085628,58389.0,58378.0,0.085643]
[1725030103409,0.085628,58389.0,58378.0,0.00017176]
[1725030103410,0.36025683,58389.0,58378.0,0.00017176]
[1725030103603,0.3,58379.0,58378.0,0.00017176]
[1725030103909,0.4108,58379.0,58367.0,0.0005]
[1725030104102,0.4108,58379.0,58349.0,0.085686]
[1725030104103,0.3,58368.0,58349.0,0.085686]
[1725030104303,0.3,58368.0,58336.0,0.3608]
[1725030104304,0.3,58350.0,58341.0,0.085697]
[1725030104514,0.1,58368.0,58341.0,0.085697]
[1725030104515,0.3608,58344.0,58341.0,0.085697]
[1725030104702,0.3608,58351.0,58341.0,0.446497]
[1725030105016,0.00025704,58352.0,58347.0,0.3608]
[1725030105215,0.00025704,58352.0,58323.0,0.02751642]
[1725030105216,0.3,58348.0,58334.0,0.3608]
[1725030105408,0.3608,58337.0,58326.0,0.3608]
[1725030105608,0.3007789,58337.0,58326.0,0.3608]
[1725030105908,0.3007789,58337.0,58331.0,0.3608]
[1725030105909,0.30103594,58337.0,58331.0,0.3608]
[1725030106108,0.00025704,58337.0,58336.0,0.3608]
[1725030106308,0.3608,58349.0,58336.0,0.3608]
[1725030106508,0.3608,58354.0,58345.0,0.3608]
[1725030106701,0.3608,58354.0,58318.0,0.02695325]
[1725030106702,0.085711,58333.0,58324.0,0.004]
[1725030106904,0.085711,58333.0,58322.0,0.0046]
[1725030106905,0.3608,58341.0,58332.0,0.3]
[1725030107103,0.3608,58347.0,58338.0,0.085701]
[1725030107304,0.3608,58347.0,58333.0,0.00853234]
[1725030107503,0.3608,58347.0,58337.0,0.00025704]
[1725030107817,0.3608,58342.0,58337.0,0.00025704]
[1725030108206,0.001,58341.0,58337.0,0.00025704]
[1725030108511,0.3608,58338.0,58337.0,0.00025704]
[1725030108706,0.3,58341.0,58337.0,0.00025704]
[1725030109304,0.3608,58338.0,58337.0,0.00025704]
[1725030109707,0.085714,58331.0,58312.0,0.004]
[1725030109904,0.3,58315.0,58308.0,0.001]
[1725030110210,0.3608,58316.0,58305.0,0.085751]
[1725030110402,0.3608,58323.0,58301.0,0.4702]
[1725030110603,0.3608,58323.0,58311.0,0.085741]
[1725030110604,0.3608,58318.0,58311.0,0.085741]
[1725030110805,0.36105704,58318.0,58311.0,0.085741]
[1725030111008,0.00025704,58318.0,58311.0,0.085741]
[1725030111207,0.3608,58313.0,58301.0,0.17870747]
[1725030111412,0.36105704,58318.0,58296.0,0.085764]
[1725030111413,0.3608,58305.0,58296.0,0.085764]
[1725030111613,0.3,58313.0,58299.0,0.3608]
[1725030111812,0.3,58307.0,58292.0,0.00858863]
[1725030112019,0.3608,58310.0,58300.0,0.3608]
[1725030112404,0.3608,58310.0,58294.0,0.3608]
[1725030112907,0.3608,58310.0,58299.0,0.3608]
[1725030113215,0.00025727,58311.0,58308.0,0.3608]
[1725030113421,0.00025727,58311.0,58309.0,0.085745]
[1725030113616,0.00025727,58311.0,58308.0,0.3608]
[1725030114317,0.00025727,58311.0,58308.0,0.3338]
[1725030114517,0.00025727,58311.0,58309.0,0.807345]
[1725030114705,0.00025727,58311.0,58310.0,0.51448]
[1725030114706,1e-08,58311.0,58310.0,0.51448]
[1725030115210,1e-08,58311.0,58310.0,1.18268]
[1725030115409,1e-08,58311.0,58310.0,1.11448]
[1725030115806,0.0086,58334.0,58310.0,1.67230757]
[1725030116009,0.0899,58331.0,58328.0,0.3608]
[1725030116311,0.3608,58338.0,58328.0,0.3608]
[1725030116513,0.0899,58336.0,58333.0,0.3608]
[1725030117011,0.00025727,58340.0,58336.0,0.085705]
[1725030117516,0.00025727,58340.0,58333.0,0.36922496]
[1725030117719,0.0899,58338.0,58333.0,0.36922496]
[1725030117906,0.0899,58335.0,58333.0,0.3608]
[1725030118307,0.00025727,58340.0,58333.0,0.3608]
[1725030118513,0.0899,58336.0,58333.0,0.3608]
[1725030118709,0.0899,58337.0,58333.0,0.3608]
[1725030118912,0.0899,58337.0,58329.0,0.00025727]
[1725030118913,0.0899,58334.0,58329.0,0.00025727]
[1725030119112,0.0899,58330.0,58329.0,0.00025727]
[1725030119317,0.0999,58330.0,58329.0,0.00025727]
[1725030119921,0.3708,58330.0,58324.0,0.27115727]
[1725030120113,0.3708,58330.0,58302.0,0.3608]
[1725030120114,0.3608,58325.0,58302.0,0.3608]
[1725030120414,0.085739,58314.0,58302.0,0.3608]
[1725030120614,0.08574,58313.0,58308.0,0.3608]
[1725030120817,0.08575,58306.0,58302.0,0.3608]
[1725030121009,0.3,58305.0,58296.0,0.3608]
[1725030121205,0.085758,58301.0,58295.0,0.1656]
[1725030121420,0.145758,58301.0,58295.0,0.1656]
[1725030121618,0.145758,58301.0,58292.0,6e-05]